[Event "Titled Tuesday Blitz November 15 Late 2022"]
[White "Kobo, Ori"]
[Black "Santos Flores, Alberto"]
[WhiteFideId "2812320"]
[BlackFideId "3601234"]
[WhiteElo "2447"]
[BlackElo "2235"]
[Result "0-1"]
[Round "09"]
[TimeControl "180+1"]
[Date "2022.11.16"]
[WhiteClock "0:00:13"]
[BlackClock "0:00:06"]

1. Nf3 {[%clk 0:02:56]}  d5 {[%clk 0:02:56]} 2. g3 {[%clk 0:02:55]}  Nf6 {[%clk 0:02:56]} 3. Bg2 {[%clk 0:02:55]}  Bf5 {[%clk 0:02:54]} 4. O-O {[%clk 0:02:54]}  c6 {[%clk 0:02:54]} 5. c4 {[%clk 0:02:48]}  h6 {[%clk 0:02:53]} 6. Qb3 {[%clk 0:02:42]}  Qb6 {[%clk 0:02:53]} 7. d3 {[%clk 0:02:43]}  e6 {[%clk 0:02:47]} 8. Be3 {[%clk 0:02:43]}  Qxb3 {[%clk 0:02:46]} 9. axb3 {[%clk 0:02:44]}  a6 {[%clk 0:02:46]} 10. Bd4 {[%clk 0:02:40]}  Nbd7 {[%clk 0:02:44]} 11. Bc3 {[%clk 0:02:40]}  Bd6 {[%clk 0:02:38]} 12. b4 {[%clk 0:02:32]}  O-O {[%clk 0:02:37]} 13. Nbd2 {[%clk 0:02:31]}  e5 {[%clk 0:02:04]} 14. Nb3 {[%clk 0:02:30]}  Rfe8 {[%clk 0:01:59]} 15. Rfc1 {[%clk 0:02:03]}  Rab8 {[%clk 0:01:58]} 16. Na5 {[%clk 0:01:58]}  Bg6 {[%clk 0:01:36]} 17. Nh4 {[%clk 0:01:51]}  Bh7 {[%clk 0:01:34]} 18. Bh3 {[%clk 0:01:48]}  g5 {[%clk 0:01:11]} 19. Nf5 {[%clk 0:01:33]}  Bf8 {[%clk 0:01:12]} 20. f3 {[%clk 0:01:25]}  h5 {[%clk 0:01:10]} 21. e4 {[%clk 0:01:20]}  g4 {[%clk 0:01:07]} 22. Bg2 {[%clk 0:01:09]}  Bxf5 {[%clk 0:00:54]} 23. exf5 {[%clk 0:01:08]}  Bh6 {[%clk 0:00:32]} 24. Rd1 {[%clk 0:01:06]}  d4 {[%clk 0:00:26]} 25. Be1 {[%clk 0:01:01]}  Be3+ {[%clk 0:00:24]} 26. Kf1 {[%clk 0:00:59]}  Nh7 {[%clk 0:00:22]} 27. c5 {[%clk 0:00:50]}  Ng5 {[%clk 0:00:20]} 28. fxg4 {[%clk 0:00:50]}  hxg4 {[%clk 0:00:20]} 29. Nc4 {[%clk 0:00:51]}  Nf6 {[%clk 0:00:16]} 30. Ke2 {[%clk 0:00:44]}  Nd5 {[%clk 0:00:13]} 31. Bxd5 {[%clk 0:00:33]}  cxd5 {[%clk 0:00:14]} 32. Nxe3 {[%clk 0:00:34]}  dxe3 {[%clk 0:00:15]} 33. Kxe3 {[%clk 0:00:35]}  Nf3 {[%clk 0:00:12]} 34. h4 {[%clk 0:00:31]}  Kg7 {[%clk 0:00:12]} 35. Bd2 {[%clk 0:00:20]}  Kf6 {[%clk 0:00:11]} 36. Kf2 {[%clk 0:00:15]}  Kxf5 {[%clk 0:00:11]} 37. Ra5 {[%clk 0:00:14]}  Rbc8 {[%clk 0:00:09]} 38. Rc1 {[%clk 0:00:13]}  Nxd2 {[%clk 0:00:06]} 0-1


[Site "https://www.chess.com"]

[Event "Titled Tuesday Blitz November 15 Late 2022"]
[White "Liu, Kelsey"]
[Black "Marcolino, Daniel Mattos"]
[WhiteFideId "30944481"]
[BlackFideId "2106841"]
[WhiteElo "2288"]
[BlackElo "2097"]
[Result "1-0"]
[Round "09"]
[TimeControl "180+1"]
[Date "2022.11.16"]
[WhiteClock "0:01:04"]
[BlackClock "0:00:35"]

1. e4 {[%clk 0:02:56]}  c6 {[%clk 0:02:59]} 2. d4 {[%clk 0:02:55]}  d5 {[%clk 0:02:59]} 3. e5 {[%clk 0:02:55]}  c5 {[%clk 0:03:00]} 4. dxc5 {[%clk 0:02:55]}  e6 {[%clk 0:03:00]} 5. Be3 {[%clk 0:02:40]}  Nd7 {[%clk 0:03:00]} 6. Nf3 {[%clk 0:02:38]}  Bxc5 {[%clk 0:02:59]} 7. Bxc5 {[%clk 0:02:37]}  Nxc5 {[%clk 0:03:00]} 8. Be2 {[%clk 0:02:35]}  Ne7 {[%clk 0:02:59]} 9. O-O {[%clk 0:02:35]}  O-O {[%clk 0:02:58]} 10. c4 {[%clk 0:02:34]}  dxc4 {[%clk 0:02:55]} 11. Bxc4 {[%clk 0:02:35]}  b6 {[%clk 0:02:52]} 12. Nc3 {[%clk 0:02:34]}  Bb7 {[%clk 0:02:52]} 13. Qe2 {[%clk 0:02:30]}  Nf5 {[%clk 0:02:41]} 14. Rfd1 {[%clk 0:02:27]}  Qe7 {[%clk 0:02:41]} 15. Nb5 {[%clk 0:02:25]}  Rfd8 {[%clk 0:02:37]} 16. Nfd4 {[%clk 0:01:41]}  Nxd4 {[%clk 0:02:21]} 17. Nxd4 {[%clk 0:01:42]}  Qg5 {[%clk 0:02:03]} 18. f3 {[%clk 0:01:40]}  h5 {[%clk 0:01:52]} 19. b4 {[%clk 0:01:36]}  Nd7 {[%clk 0:01:50]} 20. Nxe6 {[%clk 0:01:26]}  fxe6 {[%clk 0:01:23]} 21. Bxe6+ {[%clk 0:01:27]}  Kh8 {[%clk 0:01:21]} 22. Bxd7 {[%clk 0:01:22]}  Qe7 {[%clk 0:00:46]} 23. e6 {[%clk 0:01:18]}  Bc8 {[%clk 0:00:46]} 24. Qb5 {[%clk 0:01:13]}  Bxd7 {[%clk 0:00:41]} 25. exd7 {[%clk 0:01:05]}  a6 {[%clk 0:00:37]} 26. Qxh5+ {[%clk 0:01:04]}  Kg8 {[%clk 0:00:35]} 27. Qd5+ {[%clk 0:01:05]}  Kh8 {[%clk 0:00:35]} 28. Rd4 {[%clk 0:01:04]} 1-0


[Site "https://www.chess.com"]

[Event "Titled Tuesday Blitz November 15 Late 2022"]
[White "Mikaelyan, Arman"]
[Black "Ghazarian, Kirk"]
[WhiteFideId "13304852"]
[BlackFideId "30908604"]
[WhiteElo "2456"]
[BlackElo "2346"]
[Result "0-1"]
[Round "09"]
[TimeControl "180+1"]
[Date "2022.11.15"]
[WhiteClock "0:00:59"]
[BlackClock "0:01:33"]

1. d4 {[%clk 0:03:00]}  d5 {[%clk 0:02:58]} 2. Nf3 {[%clk 0:03:00]}  Nf6 {[%clk 0:02:57]} 3. Bf4 {[%clk 0:03:01]}  c5 {[%clk 0:02:56]} 4. e3 {[%clk 0:03:01]}  Nc6 {[%clk 0:02:56]} 5. Nbd2 {[%clk 0:03:02]}  Nh5 {[%clk 0:02:56]} 6. dxc5 {[%clk 0:02:55]}  Nxf4 {[%clk 0:02:56]} 7. exf4 {[%clk 0:02:56]}  g6 {[%clk 0:02:56]} 8. c3 {[%clk 0:02:55]}  Bh6 {[%clk 0:02:55]} 9. g3 {[%clk 0:02:49]}  O-O {[%clk 0:02:55]} 10. Bd3 {[%clk 0:02:47]}  b6 {[%clk 0:02:54]} 11. cxb6 {[%clk 0:02:45]}  Qxb6 {[%clk 0:02:53]} 12. Rb1 {[%clk 0:02:43]}  Bh3 {[%clk 0:02:50]} 13. Ng1 {[%clk 0:02:26]}  Bg2 {[%clk 0:02:45]} 14. Qg4 {[%clk 0:01:33]}  Bxh1 {[%clk 0:02:42]} 15. Ngf3 {[%clk 0:01:30]}  Bxf3 {[%clk 0:02:40]} 16. Nxf3 {[%clk 0:01:31]}  Rae8 {[%clk 0:02:27]} 17. Qh4 {[%clk 0:01:31]}  Bg7 {[%clk 0:02:22]} 18. Kf1 {[%clk 0:01:31]}  e5 {[%clk 0:02:21]} 19. f5 {[%clk 0:01:30]}  Qd8 {[%clk 0:02:15]} 20. Qa4 {[%clk 0:01:27]}  e4 {[%clk 0:02:11]} 21. Qxc6 {[%clk 0:01:27]}  exd3 {[%clk 0:02:11]} 22. Rd1 {[%clk 0:01:22]}  Qe7 {[%clk 0:02:01]} 23. Kg2 {[%clk 0:01:21]}  Qe4 {[%clk 0:01:56]} 24. f6 {[%clk 0:01:21]}  Bh6 {[%clk 0:01:52]} 25. b4 {[%clk 0:01:15]}  Re6 {[%clk 0:01:52]} 26. Qb5 {[%clk 0:01:12]}  Rxf6 {[%clk 0:01:49]} 27. Qxd3 {[%clk 0:01:13]}  Qxd3 {[%clk 0:01:47]} 28. Rxd3 {[%clk 0:01:13]}  Ra6 {[%clk 0:01:45]} 29. Rxd5 {[%clk 0:01:04]}  Rxa2 {[%clk 0:01:45]} 30. Ne5 {[%clk 0:01:05]}  Bg7 {[%clk 0:01:42]} 31. Nd7 {[%clk 0:01:05]}  Rc8 {[%clk 0:01:41]} 32. c4 {[%clk 0:00:58]}  Rxc4 {[%clk 0:01:38]} 33. Nc5 {[%clk 0:00:59]}  h5 {[%clk 0:01:33]} 34. Nd3 {[%clk 0:00:59]} 0-1


[Site "https://www.chess.com"]

[Event "Titled Tuesday Blitz November 15 Late 2022"]
[White "Molenda, Marcin"]
[Black "Tanenbaum, Zachary"]
[WhiteFideId "1173065"]
[BlackFideId "2060850"]
[WhiteElo "2281"]
[BlackElo "2175"]
[Result "0-1"]
[Round "09"]
[TimeControl "180+1"]
[Date "2022.11.16"]
[WhiteClock "0:00:18"]
[BlackClock "0:00:52"]

1. e4 {[%clk 0:02:55]}  e5 {[%clk 0:02:59]} 2. Nf3 {[%clk 0:02:54]}  Nc6 {[%clk 0:03:00]} 3. d4 {[%clk 0:02:54]}  exd4 {[%clk 0:02:59]} 4. Nxd4 {[%clk 0:02:55]}  Bc5 {[%clk 0:02:59]} 5. Nb3 {[%clk 0:02:56]}  Bb6 {[%clk 0:02:59]} 6. Nc3 {[%clk 0:02:56]}  Nf6 {[%clk 0:02:59]} 7. Qe2 {[%clk 0:02:57]}  O-O {[%clk 0:02:59]} 8. Bg5 {[%clk 0:02:57]}  h6 {[%clk 0:02:58]} 9. Bh4 {[%clk 0:02:57]}  Re8 {[%clk 0:02:58]} 10. O-O-O {[%clk 0:02:52]}  d6 {[%clk 0:02:58]} 11. f3 {[%clk 0:02:50]}  a5 {[%clk 0:02:56]} 12. Nd5 {[%clk 0:02:39]}  g5 {[%clk 0:02:56]} 13. Nxb6 {[%clk 0:02:38]}  cxb6 {[%clk 0:02:57]} 14. Bg3 {[%clk 0:02:36]}  d5 {[%clk 0:02:48]} 15. h4 {[%clk 0:02:34]}  Nh5 {[%clk 0:02:32]} 16. Bf2 {[%clk 0:02:27]}  Nf4 {[%clk 0:02:30]} 17. Qb5 {[%clk 0:02:28]}  Qf6 {[%clk 0:02:22]} 18. hxg5 {[%clk 0:02:24]}  hxg5 {[%clk 0:02:21]} 19. exd5 {[%clk 0:02:14]}  a4 {[%clk 0:02:04]} 20. dxc6 {[%clk 0:02:04]}  axb3 {[%clk 0:02:04]} 21. Bd4 {[%clk 0:01:36]}  Qxd4 {[%clk 0:01:34]} 22. Rxd4 {[%clk 0:01:35]}  bxa2 {[%clk 0:01:34]} 23. Ra4 {[%clk 0:01:06]}  Rxa4 {[%clk 0:01:32]} 24. Qxa4 {[%clk 0:00:38]}  a1=Q+ {[%clk 0:01:31]} 25. Qxa1 {[%clk 0:00:37]}  Re1+ {[%clk 0:01:32]} 26. Kd2 {[%clk 0:00:37]}  Rxa1 {[%clk 0:01:33]} 27. c7 {[%clk 0:00:33]}  Nd5 {[%clk 0:01:24]} 28. Rh5 {[%clk 0:00:33]}  Nxc7 {[%clk 0:01:18]} 29. Rxg5+ {[%clk 0:00:33]}  Kf8 {[%clk 0:01:19]} 30. Bd3 {[%clk 0:00:31]}  Ne6 {[%clk 0:01:15]} 31. Rb5 {[%clk 0:00:30]}  Rg1 {[%clk 0:01:12]} 32. g4 {[%clk 0:00:30]}  Bd7 {[%clk 0:00:58]} 33. Rxb6 {[%clk 0:00:30]}  Bc6 {[%clk 0:00:58]} 34. Be2 {[%clk 0:00:20]}  Nd4 {[%clk 0:00:56]} 35. Kd3 {[%clk 0:00:18]}  Nxf3 {[%clk 0:00:52]} 0-1


[Site "https://www.chess.com"]

[Event "Titled Tuesday Blitz November 15 Late 2022"]
[White "Mr_Penings"]
[Black "Avila Rodriguez, Joshua Ad"]
[BlackFideId "5126444"]
[WhiteElo "2683"]
[BlackElo "2125"]
[Result "1-0"]
[Round "09"]
[TimeControl "180+1"]
[Date "2022.11.16"]
[WhiteClock "0:00:17"]
[BlackClock "0:00:04"]

1. c4 {[%clk 0:02:59]}  e6 {[%clk 0:02:56]} 2. Nf3 {[%clk 0:02:59]}  Nf6 {[%clk 0:02:56]} 3. Nc3 {[%clk 0:02:58]}  d5 {[%clk 0:02:55]} 4. e3 {[%clk 0:02:59]}  Be7 {[%clk 0:02:53]} 5. g4 {[%clk 0:02:57]}  h6 {[%clk 0:02:45]} 6. Rg1 {[%clk 0:02:57]}  b6 {[%clk 0:02:44]} 7. h4 {[%clk 0:02:56]}  Bb7 {[%clk 0:02:42]} 8. g5 {[%clk 0:02:56]}  hxg5 {[%clk 0:02:42]} 9. hxg5 {[%clk 0:02:57]}  Ne4 {[%clk 0:02:41]} 10. g6 {[%clk 0:02:53]}  f6 {[%clk 0:02:28]} 11. Nxe4 {[%clk 0:02:34]}  dxe4 {[%clk 0:02:28]} 12. Nd4 {[%clk 0:02:35]}  Qd7 {[%clk 0:02:23]} 13. Qg4 {[%clk 0:02:31]}  f5 {[%clk 0:02:19]} 14. Qg2 {[%clk 0:02:31]}  c5 {[%clk 0:02:15]} 15. Nb5 {[%clk 0:02:12]}  a6 {[%clk 0:02:14]} 16. Nc3 {[%clk 0:02:12]}  Nc6 {[%clk 0:02:15]} 17. Na4 {[%clk 0:01:28]}  Nb4 {[%clk 0:01:33]} 18. Nxb6 {[%clk 0:01:22]}  Qc6 {[%clk 0:01:32]} 19. Nxa8 {[%clk 0:01:16]}  Nc2+ {[%clk 0:01:32]} 20. Kd1 {[%clk 0:01:16]}  Nxa1 {[%clk 0:01:33]} 21. Rh1 {[%clk 0:01:07]}  Rxh1 {[%clk 0:01:32]} 22. Qxh1 {[%clk 0:01:07]}  Bxa8 {[%clk 0:01:32]} 23. Qh8+ {[%clk 0:01:05]}  Bf8 {[%clk 0:01:32]} 24. b3 {[%clk 0:01:05]}  Qb7 {[%clk 0:01:28]} 25. Qg8 {[%clk 0:00:58]}  Nxb3 {[%clk 0:01:00]} 26. Qxe6+ {[%clk 0:00:57]}  Kd8 {[%clk 0:00:59]} 27. Qxf5 {[%clk 0:00:52]}  Nxc1 {[%clk 0:00:37]} 28. Qxf8+ {[%clk 0:00:51]}  Kd7 {[%clk 0:00:34]} 29. Bh3+ {[%clk 0:00:35]}  Kc6 {[%clk 0:00:32]} 30. Kxc1 {[%clk 0:00:33]}  Kb6 {[%clk 0:00:20]} 31. Be6 {[%clk 0:00:28]}  Qc6 {[%clk 0:00:11]} 32. Bd5 {[%clk 0:00:26]}  Qa4 {[%clk 0:00:06]} 33. Qd6+ {[%clk 0:00:18]}  Ka5 {[%clk 0:00:04]} 34. Qxc5+ {[%clk 0:00:17]} 1-0


[Site "https://www.chess.com"]

[Event "Titled Tuesday Blitz November 15 Late 2022"]
[White "Prohorov, Olexandr"]
[Black "Sonnenschein, Philipp"]
[WhiteFideId "14105578"]
[BlackFideId "16250877"]
[WhiteElo "1993"]
[BlackElo "2225"]
[Result "0-1"]
[Round "09"]
[TimeControl "180+1"]
[Date "2022.11.16"]
[WhiteClock "0:00:57"]
[BlackClock "0:01:16"]

1. Nf3 {[%clk 0:03:00]}  d5 {[%clk 0:03:00]} 2. d4 {[%clk 0:02:58]}  Nf6 {[%clk 0:03:00]} 3. c4 {[%clk 0:02:56]}  e6 {[%clk 0:03:00]} 4. Nc3 {[%clk 0:02:57]}  Bb4 {[%clk 0:03:00]} 5. Qa4+ {[%clk 0:02:48]}  Nc6 {[%clk 0:02:59]} 6. Ne5 {[%clk 0:02:48]}  Rb8 {[%clk 0:02:50]} 7. Nxc6 {[%clk 0:02:45]}  bxc6 {[%clk 0:02:50]} 8. Qxc6+ {[%clk 0:02:43]}  Bd7 {[%clk 0:02:50]} 9. Qa6 {[%clk 0:02:43]}  Ne4 {[%clk 0:02:42]} 10. Bd2 {[%clk 0:02:22]}  Nxd2 {[%clk 0:02:34]} 11. Kxd2 {[%clk 0:02:20]}  Qf6 {[%clk 0:02:33]} 12. cxd5 {[%clk 0:02:00]}  Qxd4+ {[%clk 0:02:15]} 13. Qd3 {[%clk 0:01:53]}  Qf4+ {[%clk 0:02:09]} 14. Qe3 {[%clk 0:01:47]}  Qd6 {[%clk 0:02:07]} 15. a3 {[%clk 0:01:35]}  Bc5 {[%clk 0:02:01]} 16. Qd3 {[%clk 0:01:27]}  Rxb2+ {[%clk 0:01:43]} 17. Kc1 {[%clk 0:01:27]}  Bxa3 {[%clk 0:01:34]} 18. Rxa3 {[%clk 0:01:14]}  Qxa3 {[%clk 0:01:32]} 19. Nb1 {[%clk 0:01:14]}  Qa1 {[%clk 0:01:19]} 20. dxe6 {[%clk 0:01:06]}  Bxe6 {[%clk 0:01:18]} 21. e4 {[%clk 0:00:57]}  O-O {[%clk 0:01:17]} 22. Be2 {[%clk 0:00:57]}  Rfb8 {[%clk 0:01:16]} 0-1


[Site "https://www.chess.com"]

[Event "Titled Tuesday Blitz November 15 Late 2022"]
[White "Przybylski, Wojciech"]
[Black "Nugumanov, Bakhtiyar"]
[WhiteFideId "1117599"]
[BlackFideId "13701797"]
[WhiteElo "2221"]
[BlackElo "2287"]
[Result "0-1"]
[Round "09"]
[TimeControl "180+1"]
[Date "2022.11.16"]
[WhiteClock "0:00:03"]
[BlackClock "0:00:09"]

1. d4 {[%clk 0:03:00]}  Nf6 {[%clk 0:02:58]} 2. c4 {[%clk 0:02:54]}  e6 {[%clk 0:02:57]} 3. Nc3 {[%clk 0:02:52]}  Bb4 {[%clk 0:02:57]} 4. Nf3 {[%clk 0:02:46]}  b6 {[%clk 0:02:51]} 5. Qb3 {[%clk 0:02:43]}  Qe7 {[%clk 0:02:34]} 6. Bg5 {[%clk 0:02:42]}  O-O {[%clk 0:02:24]} 7. g3 {[%clk 0:02:34]}  Bb7 {[%clk 0:02:24]} 8. Bg2 {[%clk 0:02:34]}  c5 {[%clk 0:02:01]} 9. a3 {[%clk 0:02:18]}  Ba5 {[%clk 0:01:37]} 10. dxc5 {[%clk 0:02:11]}  Qxc5 {[%clk 0:01:37]} 11. Bxf6 {[%clk 0:02:08]}  gxf6 {[%clk 0:01:38]} 12. O-O {[%clk 0:02:07]}  Nc6 {[%clk 0:01:34]} 13. Rfd1 {[%clk 0:01:59]}  Rad8 {[%clk 0:01:29]} 14. Qc2 {[%clk 0:01:57]}  Bxc3 {[%clk 0:01:28]} 15. Qxc3 {[%clk 0:01:56]}  Qe7 {[%clk 0:01:16]} 16. Nd2 {[%clk 0:01:43]}  Kg7 {[%clk 0:01:03]} 17. Ne4 {[%clk 0:01:37]}  Na5 {[%clk 0:00:56]} 18. b4 {[%clk 0:01:34]}  Bxe4 {[%clk 0:00:55]} 19. Bxe4 {[%clk 0:01:32]}  Nc6 {[%clk 0:00:56]} 20. Rd3 {[%clk 0:01:18]}  Ne5 {[%clk 0:00:55]} 21. Rd4 {[%clk 0:01:17]}  Kg8 {[%clk 0:00:46]} 22. Rad1 {[%clk 0:01:12]}  Rfe8 {[%clk 0:00:36]} 23. Qd2 {[%clk 0:01:09]}  f5 {[%clk 0:00:25]} 24. Bg2 {[%clk 0:01:08]}  Rc8 {[%clk 0:00:22]} 25. Rc1 {[%clk 0:00:58]}  Rc7 {[%clk 0:00:21]} 26. Qh6 {[%clk 0:00:56]}  Rec8 {[%clk 0:00:16]} 27. Qf4 {[%clk 0:00:30]}  Ng6 {[%clk 0:00:11]} 28. Qd2 {[%clk 0:00:27]}  Ne5 {[%clk 0:00:10]} 29. Qf4 {[%clk 0:00:18]}  Ng6 {[%clk 0:00:10]} 30. Qe3 {[%clk 0:00:15]}  d6 {[%clk 0:00:04]} 31. f4 {[%clk 0:00:14]}  b5 {[%clk 0:00:04]} 32. c5 {[%clk 0:00:12]}  dxc5 {[%clk 0:00:04]} 33. Rd3 {[%clk 0:00:06]}  cxb4 {[%clk 0:00:03]} 34. Rcd1 {[%clk 0:00:06]}  bxa3 {[%clk 0:00:02]} 35. Rxa3 {[%clk 0:00:06]}  b4 {[%clk 0:00:02]} 36. Rad3 {[%clk 0:00:06]}  a5 {[%clk 0:00:03]} 37. Qb6 {[%clk 0:00:05]}  a4 {[%clk 0:00:02]} 38. g4 {[%clk 0:00:05]}  fxg4 {[%clk 0:00:02]} 39. f5 {[%clk 0:00:05]}  Qc5+ {[%clk 0:00:02]} 40. Qxc5 {[%clk 0:00:04]}  Rxc5 {[%clk 0:00:03]} 41. fxg6 {[%clk 0:00:05]}  hxg6 {[%clk 0:00:04]} 42. Rd4 {[%clk 0:00:02]}  Rb8 {[%clk 0:00:04]} 43. Rb1 {[%clk 0:00:02]}  a3 {[%clk 0:00:04]} 44. Rdxb4 {[%clk 0:00:02]}  Rxb4 {[%clk 0:00:04]} 45. Rxb4 {[%clk 0:00:02]}  a2 {[%clk 0:00:04]} 46. Rb8+ {[%clk 0:00:02]}  Kg7 {[%clk 0:00:05]} 47. Ra8 {[%clk 0:00:03]}  Rc1+ {[%clk 0:00:05]} 48. Kf2 {[%clk 0:00:04]}  a1=Q {[%clk 0:00:06]} 49. Rxa1 {[%clk 0:00:03]}  Rxa1 {[%clk 0:00:07]} 50. Kg3 {[%clk 0:00:03]}  Ra3+ {[%clk 0:00:08]} 51. Kxg4 {[%clk 0:00:03]}  f5+ {[%clk 0:00:08]} 52. Kf4 {[%clk 0:00:03]}  Ra4+ {[%clk 0:00:08]} 53. Kg3 {[%clk 0:00:03]}  Kf6 {[%clk 0:00:09]} 54. h4 {[%clk 0:00:02]}  e5 {[%clk 0:00:09]} 55. Bf3 {[%clk 0:00:02]}  e4 {[%clk 0:00:09]} 56. Bg2 {[%clk 0:00:03]}  Ke5 {[%clk 0:00:09]} 57. e3 {[%clk 0:00:03]}  Ra2 {[%clk 0:00:09]} 58. h5 {[%clk 0:00:02]}  gxh5 {[%clk 0:00:08]} 59. Bf1 {[%clk 0:00:02]}  Ra1 {[%clk 0:00:08]} 60. Bc4 {[%clk 0:00:02]}  Re1 {[%clk 0:00:08]} 61. Kf2 {[%clk 0:00:02]}  Rc1 {[%clk 0:00:08]} 62. Bb5 {[%clk 0:00:02]}  Rc2+ {[%clk 0:00:09]} 63. Kg3 {[%clk 0:00:02]}  Rb2 {[%clk 0:00:07]} 64. Ba6 {[%clk 0:00:02]}  Rb3 {[%clk 0:00:07]} 65. Kf2 {[%clk 0:00:02]}  f4 {[%clk 0:00:07]} 66. exf4+ {[%clk 0:00:02]}  Kxf4 {[%clk 0:00:08]} 67. Bc4 {[%clk 0:00:02]}  Rb2+ {[%clk 0:00:08]} 68. Kf1 {[%clk 0:00:03]}  e3 {[%clk 0:00:09]} 69. Bd3 {[%clk 0:00:03]}  h4 {[%clk 0:00:09]} 70. Bc4 {[%clk 0:00:02]}  h3 {[%clk 0:00:10]} 71. Bd5 {[%clk 0:00:03]}  h2 {[%clk 0:00:10]} 72. Bc6 {[%clk 0:00:02]}  Kg3 {[%clk 0:00:09]} 73. Bd5 {[%clk 0:00:01]}  Rf2+ {[%clk 0:00:09]} 74. Ke1 {[%clk 0:00:01]}  Rb2 {[%clk 0:00:09]} 75. Kf1 {[%clk 0:00:01]}  Rb1+ {[%clk 0:00:09]} 76. Ke2 {[%clk 0:00:02]}  h1=Q {[%clk 0:00:09]} 77. Bxh1 {[%clk 0:00:01]}  Rxh1 {[%clk 0:00:10]} 78. Kxe3 {[%clk 0:00:02]}  Re1+ {[%clk 0:00:10]} 79. Kd2 {[%clk 0:00:02]}  Re8 {[%clk 0:00:11]} 80. Kd3 {[%clk 0:00:02]}  Kf4 {[%clk 0:00:10]} 81. Kd4 {[%clk 0:00:03]}  Rd8+ {[%clk 0:00:10]} 82. Kc4 {[%clk 0:00:03]}  Ke5 {[%clk 0:00:10]} 83. Kc5 {[%clk 0:00:04]}  Rc8+ {[%clk 0:00:10]} 84. Kb6 {[%clk 0:00:03]}  Rc1 {[%clk 0:00:09]} 0-1


[Site "https://www.chess.com"]

[Event "Titled Tuesday Blitz November 15 Late 2022"]
[White "Reprintsev, Alexander"]
[Black "Leiva, Gianmarco"]
[WhiteFideId "14100541"]
[BlackFideId "3804399"]
[WhiteElo "2230"]
[BlackElo "2286"]
[Result "1-0"]
[Round "09"]
[TimeControl "180+1"]
[Date "2022.11.16"]
[WhiteClock "0:00:16"]
[BlackClock "0:02:12"]

1. e4 {[%clk 0:02:55]}  c5 {[%clk 0:02:56]} 2. b3 {[%clk 0:02:55]}  d6 {[%clk 0:02:56]} 3. Bb2 {[%clk 0:02:54]}  e5 {[%clk 0:02:57]} 4. f4 {[%clk 0:02:53]}  exf4 {[%clk 0:02:56]} 5. Qf3 {[%clk 0:02:53]}  Nf6 {[%clk 0:02:57]} 6. Qxf4 {[%clk 0:02:52]}  Be7 {[%clk 0:02:57]} 7. Bb5+ {[%clk 0:02:49]}  Bd7 {[%clk 0:02:57]} 8. Bxd7+ {[%clk 0:02:49]}  Qxd7 {[%clk 0:02:58]} 9. Nf3 {[%clk 0:02:48]}  Nc6 {[%clk 0:02:57]} 10. O-O {[%clk 0:02:47]}  O-O {[%clk 0:02:57]} 11. c4 {[%clk 0:02:43]}  Qg4 {[%clk 0:02:58]} 12. Qxg4 {[%clk 0:02:35]}  Nxg4 {[%clk 0:02:59]} 13. h3 {[%clk 0:02:30]}  Bf6 {[%clk 0:02:59]} 14. Nc3 {[%clk 0:02:23]}  Nge5 {[%clk 0:02:58]} 15. Nh2 {[%clk 0:02:13]}  Nd3 {[%clk 0:02:58]} 16. Rxf6 {[%clk 0:01:07]}  gxf6 {[%clk 0:02:59]} 17. Ba3 {[%clk 0:01:00]}  f5 {[%clk 0:02:57]} 18. exf5 {[%clk 0:00:57]}  Rae8 {[%clk 0:02:56]} 19. Nf3 {[%clk 0:00:49]}  f6 {[%clk 0:02:55]} 20. Kf1 {[%clk 0:00:41]}  Rf7 {[%clk 0:02:53]} 21. Nd5 {[%clk 0:00:40]}  Kg7 {[%clk 0:02:48]} 22. Rb1 {[%clk 0:00:32]}  a6 {[%clk 0:02:43]} 23. Bb2 {[%clk 0:00:31]}  Nxb2 {[%clk 0:02:40]} 24. Rxb2 {[%clk 0:00:31]}  b5 {[%clk 0:02:33]} 25. d3 {[%clk 0:00:29]}  Rb8 {[%clk 0:02:27]} 26. Re2 {[%clk 0:00:26]}  a5 {[%clk 0:02:25]} 27. Nf4 {[%clk 0:00:24]}  a4 {[%clk 0:02:24]} 28. Re6 {[%clk 0:00:20]}  bxc4 {[%clk 0:02:22]} 29. dxc4 {[%clk 0:00:18]}  a3 {[%clk 0:02:20]} 30. Nh5+ {[%clk 0:00:18]}  Kh8 {[%clk 0:02:20]} 31. Nxf6 {[%clk 0:00:18]}  Nb4 {[%clk 0:02:20]} 32. Ng5 {[%clk 0:00:16]}  Rxf6 {[%clk 0:02:18]} 33. Rxf6 {[%clk 0:00:16]}  Nxa2 {[%clk 0:02:19]} 34. Rf7 {[%clk 0:00:16]}  Nc3 {[%clk 0:02:16]} 35. Rxh7+ {[%clk 0:00:15]}  Kg8 {[%clk 0:02:16]} 36. f6 {[%clk 0:00:16]}  a2 {[%clk 0:02:12]} 37. Rg7+ {[%clk 0:00:16]}  Kf8 {[%clk 0:02:11]} 38. Ne6+ {[%clk 0:00:16]}  Ke8 {[%clk 0:02:12]} 39. Re7# {[%clk 0:00:16]} 1-0


[Site "https://www.chess.com"]